fUSD/lending_fUSD_20241230
["ID","MTS","AMOUNT","RATE_DAILY","PERIOD"]
[347205103,1735572637771,-917.44,0.000125,2]
[347205302,1735572639857,-823.375,0.000125,2]
[347205305,1735572639873,-798.6243686,0.000125,2]
[347205306,1735572639888,-3213.65856702,0.000125,2]
[347205307,1735572639904,-22957.09999998,0.000125,2]
[347205308,1735572639915,-16571.50000005,0.000125,2]
[347205309,1735572639927,-14969.1181576,0.000125,2]
[347205310,1735572639938,-9811.1874505,0.000125,2]
[347205311,1735572639950,-46622.24623273,0.000125,2]
[347205317,1735572639999,-1000.00000181,0.000125,2]
[347205597,1735572642607,-186.33,0.00012022,2]
[347205600,1735572642616,-11148.21389629,0.000125,2]
[347205614,1735572642660,-18017.202,0.000125,2]
[347205645,1735572642823,-1336.335,0.000125,2]
[347205647,1735572642835,-79429.42782047,0.000125,2]
[347205653,1735572642883,-1594.61578653,0.000125,2]
[347205655,1735572642894,-432.0,0.000125,2]
[347205661,1735572642936,-200000.0322612,0.000125,2]
[347205663,1735572642947,-683.665,0.000125,2]
[347205974,1735572645550,-256.00451223,0.00012473,2]
[347205976,1735572645562,-243.99548777,0.00012473,2]
[347205978,1735572645571,-588.87951219,0.000125,2]
[347205983,1735572645609,-2465.23679469,0.000125,2]
[347205993,1735572645696,-3100.33513036,0.000125,2]
[347205996,1735572645707,-8297.81488646,0.000125,2]
[347205998,1735572645718,-1000.000025,0.000125,2]
[347206000,1735572645729,-531.41457158,0.000125,2]
[347206006,1735572645830,-643.99690965,0.000124,2]
[347206008,1735572645839,-56435.56568382,0.000125,2]
[347206010,1735572645850,-1098.0,0.000125,2]
[347206012,1735572645866,-649.17304953,0.000125,2]
[347206015,1735572645877,-266.34815154,0.000125,2]
[347206219,1735572708363,1019.89859745,0.00013698,30]
[347206220,1735572719332,121.73664388,0.00010459,2]
[347206221,1735572719355,45.58335612,0.00010459,2]
[347206223,1735572922229,166.89,0.00010137,2]
[347206224,1735573092319,957.6,9.035e-05,2]
[347206225,1735573106853,1500.0,0.00010857,2]
[347206227,1735573238005,979.13,0.00010959,2]
[347206228,1735573254931,200.0,0.000108,2]
[347206229,1735573264411,167.4,0.00010827,2]
[347206230,1735573313084,400.0,0.00011003,2]
[347206231,1735573345302,151.33,0.00011003,2]
[347206232,1735573366715,250.0,0.00010819,2]
[347206235,1735573400583,250.0,0.00010848,2]
[347206239,1735573539558,167.14,0.00010974,2]
[347206241,1735573620770,23900.0,0.00010635,2]
[347206242,1735573628182,-2000.0,0.00011063,2]
[347206243,1735573628205,-165.95,0.00011243,2]
[347206244,1735573628227,-150.0,0.00011244,2]
[347206245,1735573628249,-150.0,0.00011244,2]
[347206246,1735573628270,-150.0,0.00011244,2]
[347206247,1735573628308,-150.0,0.00011244,2]
[347206248,1735573628334,-150.0,0.00011244,2]
[347206249,1735573628355,-265.79235155,0.00011244,2]
[347206250,1735573642165,-478.08280228,0.00011244,2]
[347206251,1735573642187,-0.01388989,0.00011257,2]
[347206252,1735573643781,1758.25,0.00010722,2]
[347206253,1735573646099,3558.25,0.00010724,2]
[347206254,1735573653105,-4162.735893,0.00011157,2]
[347206255,1735573678685,682.89,0.00010848,2]
[347206256,1735573747991,156.64,0.00010711,2]
[347206257,1735573748224,156.64,0.00010715,2]
[347206258,1735573748450,156.64,0.00010718,2]
[347206259,1735573748900,156.64,0.00010722,2]
[347206260,1735573749149,156.64,0.00010726,2]
[347206261,1735573749475,156.64,0.0001073,2]
[347206262,1735573749694,156.64,0.00010734,2]
[347206263,1735573749950,156.64,0.00010738,2]
[347206264,1735573750131,156.64,0.00010741,2]
[347206265,1735573750335,156.64,0.00010745,2]
[347206266,1735573750545,156.64,0.00010749,2]
[347206267,1735573750767,156.64,0.00010753,2]
[347206268,1735573750967,156.64,0.00010757,2]
[347206269,1735573751100,-3430.0,0.00011157,2]
[347206270,1735573751194,156.64,0.00010761,2]
[347206273,1735573752246,156.64,0.00010764,2]
[347206274,1735573773650,250.0,0.00010701,2]
[347206283,1735573810476,815.73,0.00010711,2]
[347206295,1735573831789,-327.41088722,0.00011247,2]
[347206296,1735573831802,-180.94911278,0.00011247,2]
[347206297,1735573831812,-499.12,0.00011247,2]
[347206298,1735573831821,-503.5,0.00011247,2]
[347206299,1735573831831,-165.93611011,0.00011257,2]
[347206300,1735573831842,-150.0,0.0001126,2]
[347206301,1735573831852,-165.95,0.00011271,2]
[347206302,1735573831861,-165.95,0.00011285,2]
[347206303,1735573831870,-74.5156227,0.00011297,2]
[347206304,1735573831882,-76.4743773,0.00011297,2]
[347206305,1735573831892,-957.6,0.00011299,2]
[347206306,1735573831902,-165.95,0.00011299,2]
[347206307,1735573831912,-999.99,0.00011299,2]
[347206308,1735573831922,-150.0,0.00011327,2]
[347206309,1735573831932,-1754.95,0.0001133,2]
[347206310,1735573831942,-150.0,0.00011348,2]
[347206311,1735573831951,-150.0,0.0001141,2]
[347206312,1735573831961,-150.0,0.00011422,2]
[347206313,1735573831971,-150.0,0.00011452,2]
[347206314,1735573831980,-150.0,0.00011494,2]
[347206315,1735573831990,-2500.17,0.00011507,2]
[347206316,1735573831999,-106.78142872,0.00011556,2]
[347206317,1735573832011,-43.21857128,0.00011556,2]
[347206318,1735573832021,-150.0,0.00011577,2]
[347206319,1735573832032,-1531.08,0.0001159,2]
[347206320,1735573832041,-275.81897575,0.000116,4]
[347206321,1735573832056,-1424.18102425,0.000116,4]
[347206322,1735573832066,-150.0,0.00011601,2]
[347206323,1735573832076,-1086.50889335,0.00011617,2]
[347206324,1735573832088,-502.23,0.00011618,2]
[347206325,1735573832098,-150.0,0.0001166,2]
[347206326,1735573832108,-150.0,0.0001166,2]
[347206327,1735573832119,-3500.0,0.000117,4]
[347206328,1735573832129,-150.0,0.00011744,2]
[347206329,1735573832140,-121973.0,0.00011759,2]
[347206330,1735573832150,-150.0,0.00011764,2]
[347206331,1735573832162,-150.0,0.00011779,2]
[347206332,1735573832173,-5200.0,0.000118,4]
[347206334,1735573832184,-506.34,0.00011805,2]
[347206336,1735573832194,-507.04,0.00011805,2]
[347206338,1735573832204,-491.35,0.00011805,2]
[347206340,1735573832214,-150.0,0.00011827,2]
[347206342,1735573832224,-5677.26,0.00011828,7]
[347206344,1735573832234,-150.0,0.00011868,2]
[347206346,1735573832245,-492.94,0.00011876,2]
[347206348,1735573832255,-868.427,0.0001188,2]
[347206350,1735573832264,-2521.3158,0.0001188,2]
[347206352,1735573832274,-1000.0,0.0001188,2]
[347206354,1735573832284,-7000.0,0.000119,4]
[347206356,1735573832294,-6548.7913,0.00011907,2]
[347206358,1735573832304,-500.0,0.00011907,2]
[347206360,1735573832314,-3842.3546,0.00011907,2]
[347206362,1735573832325,-150.0,0.0001191,2]
[347206364,1735573832335,-2500.0,0.00011928,2]
[347206365,1735573832350,-200.0,0.00011933,2]
[347206367,1735573832361,-150.0,0.00011958,2]
[347206369,1735573832372,-150.0,0.00011973,2]
[347206370,1735573832381,-150.0,0.00011993,2]
[347206371,1735573832391,-8000.0,0.00012,2]
[347206372,1735573832401,-151.972489,0.00012,2]
[347206373,1735573832411,-45520.8351,0.00012028,2]
[347206374,1735573832421,-150.0,0.00012077,2]
[347206375,1735573832431,-150.0,0.00012077,2]
[347206376,1735573832441,-150.0,0.00012136,2]
[347206377,1735573832451,-437.44,0.00012137,2]
[347206378,1735573832461,-771.32,0.00012137,2]
[347206379,1735573832472,-771.32,0.00012137,2]
[347206380,1735573832485,-437.44,0.00012137,2]
[347206381,1735573832495,-771.32,0.00012137,2]
[347206382,1735573832504,-437.44,0.00012137,2]
[347206383,1735573832515,-437.44,0.00012137,2]
[347206384,1735573832524,-771.32,0.00012137,2]
[347206385,1735573832534,-2228.8098,0.00012144,2]
[347206386,1735573832545,-150.0,0.0001216,2]
[347206387,1735573832555,-150.0,0.00012181,2]
[347206388,1735573832565,-429.34778484,0.00012194,2]
[347206389,1735573832575,-1000.0,0.000122,2]
[347206390,1735573832584,-682.89,0.00012204,2]
[347206391,1735573832599,-166.587,0.00012227,2]
[347206392,1735573832609,-771.32,0.00012235,2]
[347206393,1735573832619,-150.0,0.00012243,2]
[347206394,1735573832628,-150.0,0.00012285,2]
[347206395,1735573832638,-3343.484,0.00012293,2]
[347206396,1735573832647,-1000.0,0.000123,2]
[347206397,1735573832658,-8800.0,0.000123,4]
[347206398,1735573832668,-150.0,0.00012315,2]
[347206399,1735573832678,-150.0,0.00012327,2]
[347206400,1735573832687,-5000.0,0.00012366,2]
[347206401,1735573832697,-189.87064025,0.00012366,2]
[347206402,1735573832706,-150.0,0.00012389,2]
[347206403,1735573832716,-2502.11843434,0.00012399,2]
[347206404,1735573832725,-2502.11843425,0.00012399,2]
[347206405,1735573832735,-2502.11843425,0.00012399,2]
[347206406,1735573832745,-2502.11843425,0.00012399,2]
[347206407,1735573832755,-2502.11843425,0.00012399,2]
[347206408,1735573832764,-2502.11843425,0.00012399,2]
[347206409,1735573832773,-2470.7499321,0.00012399,2]
[347206410,1735573832786,-31.36850215,0.00012399,2]
[347206411,1735573832795,-2502.11843425,0.00012399,2]
[347206412,1735573832804,-2502.11843425,0.00012399,2]
[347206413,1735573832813,-2502.11843425,0.000124,2]
[347206414,1735573832823,-1700.0,0.000124,4]
[347206415,1735573832833,-16487.33199994,0.000124,2]
[347206416,1735573832850,-1253.87135451,0.000124,2]
[347206417,1735573832863,-4307.4185581,0.000124,2]
[347206418,1735573832890,-6109.48582206,0.000124,2]
[347206419,1735573832899,-150.0,0.0001241,2]
[347206420,1735573832909,-3000.0,0.0001241,2]
[347206421,1735573832920,-3780.86182331,0.0001242,2]
[347206422,1735573832930,-437.44,0.00012466,2]
[347206423,1735573832939,-771.32,0.00012466,2]
[347206424,1735573832949,-771.32,0.00012466,2]
[347206425,1735573832959,-437.44,0.00012466,2]
[347206426,1735573832968,-771.32,0.00012466,2]
[347206427,1735573832978,-4402.0,0.00012466,2]
[347206428,1735573832988,-6071.31235464,0.00012466,2]
[347206429,1735573833000,-1239.35,0.00012466,2]
[347206430,1735573833013,-1916.437789,0.00012466,2]
[347206431,1735573833314,-1170.05,0.00012466,2]
[347206432,1735573833327,-2193.100005,0.00012466,2]
[347206433,1735573833375,-5151.65395481,0.00012466,2]
[347206434,1735573833387,-479.3635473,0.00012466,2]
[347206435,1735573833399,-38756.73234925,0.00012466,2]
[347206436,1735573833409,-6087.0,0.00012466,2]
[347206437,1735573833418,-500.0,0.00012473,2]
[347206438,1735573833428,-511.13889382,0.00012473,2]
[347206439,1735573833438,-500.0,0.00012473,2]
[347206440,1735573833448,-500.0,0.00012473,2]
[347206441,1735573833458,-419.23634141,0.00012473,2]
[347206442,1735573833469,-34728.71443971,0.0001249,2]
[347206443,1735573833484,-1090.52064337,0.0001249,2]
[347206444,1735573833497,-571.2076922,0.0001249,2]
[347206445,1735573833512,-2308.34147264,0.0001249,2]
[347206446,1735573833524,-63300.03242349,0.0001249,2]
[347206447,1735573833536,-961.67907138,0.0001249,2]
[347206459,1735573838193,-381.29752691,0.00011133,2]
[347206460,1735573838204,-618.70247309,0.00011133,2]
[347206461,1735573838214,-914.64578491,0.0001249,2]
[347206462,1735573838226,-9266.66307812,0.0001249,2]
[347206463,1735573838237,-20952.84668339,0.0001249,2]
[347206464,1735573838249,-480.58,0.0001249,2]
[347206465,1735573838261,-44746.53357162,0.0001249,2]
[347206466,1735573838271,-3000.0,0.0001249,2]
[347206467,1735573838281,-282.72247137,0.00012493,2]
[347206468,1735573838291,-198.30767477,0.00012493,2]
[347206469,1735573838301,-175.31030912,0.00012493,2]
[347206470,1735573838310,-150.09785196,0.00012493,2]
[347206471,1735573838320,-177.28682157,0.00012493,2]
[347206472,1735573838329,-500.0,0.00012499,2]
[347206473,1735573838339,-500.0,0.00012499,2]
[347206474,1735573838350,-500.0,0.00012499,2]
[347206475,1735573838359,-500.0,0.00012499,2]
[347206476,1735573838368,-500.0,0.00012499,2]
[347206477,1735573838378,-2288.0,0.00012499,2]
[347206478,1735573838387,-500.76,0.00012499,2]
[347206479,1735573838397,-500.19,0.00012499,2]
[347206480,1735573838407,-6557.4384059,0.000125,2]
[347206481,1735573838417,-14173.01938708,0.000125,2]
[347206483,1735573838429,-2410.6875088,0.000125,2]
[347206485,1735573838441,-3163.74223281,0.000125,2]
[347206487,1735573838452,-1269.99759,0.000125,2]
[347206489,1735573838464,-2388.6000052,0.000125,2]
[347206495,1735573838515,-500.0,0.00012499,2]
[347206497,1735573838525,-545.52798021,0.00012499,2]
[347206499,1735573838534,-8160.57201979,0.000125,2]
[347206501,1735573838545,-285.214,0.000125,2]
[347206503,1735573838557,-288.9699825,0.000125,2]
[347206506,1735573838570,-925.60180425,0.000125,2]
[347206508,1735573838581,-724.000035,0.000125,2]
[347206510,1735573838594,-1183.499996,0.000125,2]
[347206512,1735573838606,-1947.44,0.000125,2]
[347206516,1735573838631,-34840.691785,0.000125,2]
[347206518,1735573838643,-74859.2620805,0.000125,2]
[347206520,1735573838654,-10084.99925888,0.000125,2]
[347206525,1735573838695,-1415.089996,0.000125,2]
[347206528,1735573838707,-5088.11340144,0.000125,2]
[347206530,1735573838719,-828.82925342,0.000125,2]
[347206535,1735573838761,-3029.25315125,0.000125,2]
[347206605,1735573839435,-6066.21741236,0.000125,2]
[347206607,1735573839446,-503.06,0.000125,2]
[347206661,1735573840080,-202097.90664754,0.000125,2]
[347206664,1735573840091,-6014.6,0.000125,2]
[347206666,1735573840105,-5663.00549854,0.000125,2]
[347206676,1735573840272,-281.48008961,0.000125,2]
[347206678,1735573840284,-992.79,0.000125,2]
[347206681,1735573840296,-11350.78514672,0.000125,2]
[347206683,1735573840307,-503.26161318,0.000125,2]
[347206685,1735573840318,-3907.79298001,0.000125,2]
[347206687,1735573840329,-1512.7,0.000125,2]
[347206689,1735573840341,-4848.9,0.000125,2]
[347206692,1735573840353,-9381.119514,0.000125,2]
[347206694,1735573840364,-5471.8373109,0.000125,2]
[347206696,1735573840376,-13201.90983459,0.000125,2]
[347206698,1735573840387,-269011.0521918,0.000125,2]
[347206700,1735573840399,-5019.68047745,0.000125,2]
[347206703,1735573840410,-3622.39033404,0.000125,2]
[347206710,1735573840470,-12985.84610772,0.000125,2]
[347206712,1735573840484,-1047.37734752,0.000125,2]
[347206717,1735573840524,-24449.684382,0.000125,2]
[347206719,1735573840535,-800.89909356,0.000125,2]
[347206970,1735573842959,-500.0,0.00012473,2]
[347206972,1735573842969,-207.3898016,0.000125,2]
[347206974,1735573842980,-4413.25153393,0.000125,2]
[347206980,1735573843030,-190150.64220867,0.000125,2]
[347206983,1735573843041,-1648.35,0.000125,2]
[347206985,1735573843052,-3791.23748723,0.000125,2]
[347206992,1735573843109,-11585.49986,0.000125,2]
[347206994,1735573843120,-925.02,0.000125,2]
[347207282,1735573845907,-399.78581851,0.0001181,2]
[347207284,1735573845922,-100.26418149,0.0001181,2]
[347207286,1735573845932,-1038201.57061651,0.000125,2]
[347207288,1735573845945,-3239.55008838,0.000125,2]
[347207313,1735573846206,-353.52692799,0.000125,2]
[347207319,1735573846261,-3805.83049162,0.000125,2]
[347207321,1735573846275,-772.09808,0.000125,2]
[347207323,1735573846288,-6769.25669112,0.000125,2]
[347207325,1735573846300,-923.57409,0.000125,2]
[347207332,1735573846366,-5787.35628123,0.000125,2]
[347207334,1735573846379,-9251.74868873,0.000125,2]
[347207964,1735573881170,159.15,0.00010137,2]
[347207965,1735574082218,928.76,0.00010101,2]
[347207966,1735574177055,3000.52207473,0.00011011,2]
[347207967,1735574187616,281.65571215,0.00024965,120]
[347207971,1735574611474,-10000000.0,0.00024948,30]
[347207972,1735574628360,-82587.15370295,0.00024948,30]
[347207973,1735574628385,-10000.0,0.00024948,30]
[347207974,1735574628409,-5813.69963157,0.00024948,30]
[347207975,1735574628433,-9500.0,0.00024948,30]
[347207976,1735574628459,-6608.35450893,0.00024948,30]
[347207977,1735574628488,-207674.69081368,0.00024948,30]
[347207978,1735574628513,-3918.9386509,0.00024948,30]
[347207979,1735574628540,-3500.0,0.00024948,30]
[347207980,1735574628564,-13058.64385505,0.00024948,30]
[347207981,1735574628591,-10458.01114333,0.00024948,30]
[347207982,1735574628617,-26651.25086114,0.00024948,30]
[347207983,1735574628642,-32322.62293854,0.00024948,30]
[347207984,1735574628668,-28675.12041045,0.00024948,30]
[347207985,1735574628693,-100000.0,0.00024948,30]
[347207986,1735574628718,-50000.0,0.00024948,30]
[347207987,1735574628744,-12814.88231074,0.00024948,30]
[347207988,1735574628769,-12743.18874564,0.00024948,30]
[347207989,1735574628797,-293225.76189464,0.00024948,30]
[347207990,1735574628823,-253360.49260082,0.00024948,30]
[347207991,1735574628850,-208447.21253396,0.00024948,30]
[347207992,1735574628879,-622222.05132079,0.00024948,30]
[347207993,1735574628904,-1025816.03744428,0.00024948,30]
[347207994,1735574628931,-223265.41530503,0.00024948,30]
[347207995,1735574628958,-4534577.10636251,0.00024948,30]
[347207996,1735574628986,-2222759.36496505,0.00024948,30]
[347207997,1735574646413,-6085509.56654103,0.00024948,30]
[347207998,1735574646438,-100000.0,0.00024948,30]
[347207999,1735574646462,-71000.0,0.00024948,30]
[347208000,1735574646487,-252688.0,0.00024948,30]
[347208001,1735574646511,-927443.87183293,0.00024948,30]
[347208002,1735574646534,-57667.79321377,0.00024948,30]
[347208003,1735574646557,-183741.644721,0.00024948,30]
[347208004,1735574646581,-15000.0,0.00024948,30]
[347208005,1735574646604,-2026181.84713249,0.00024948,30]
[347208006,1735574646626,-13088.98032862,0.00024948,30]
[347208007,1735574646649,-97640.75212631,0.00024948,30]
[347208008,1735574646672,-3130.84768372,0.00024948,30]
[347208009,1735574646695,-502.77468201,0.00024948,30]
[347208010,1735574646718,-375.7614519,0.00024948,30]
[347208011,1735574646743,-2381.30229573,0.00024948,30]
[347208012,1735574646766,-861.96887627,0.00024948,30]
[347208013,1735574646792,-1000.0,0.00024948,30]
[347208014,1735574646815,-2338.5752746,0.00024948,30]
[347208015,1735574646839,-2729.95891424,0.00024948,30]
[347208016,1735574646864,-1978.55433002,0.00024948,30]
[347208017,1735574646888,-1876.47294254,0.00024948,30]
[347208018,1735574646911,-727.37584478,0.00024948,30]
[347208019,1735574646934,-302.33562893,0.00024948,30]
[347208020,1735574646958,-3404.85619882,0.00024948,30]
[347208021,1735574646984,-260.92752748,0.00024948,30]
[347208022,1735574647009,-2500.0,0.00024948,30]
[347208023,1735574647033,-844.30788463,0.00024948,30]
[347208024,1735574647056,-2029.02965695,0.00024948,30]
[347208025,1735574647079,-3000.0,0.00024948,30]
[347208026,1735574647104,-852.38329336,0.00024948,30]
[347208027,1735574647127,-918.13711057,0.00024948,30]
[347208028,1735574647151,-205.4981449,0.00024948,30]
[347208029,1735574647174,-948.51778647,0.00024948,30]
[347208030,1735574647197,-346.68026807,0.00024948,30]
[347208031,1735574647220,-51265.59644313,0.00024948,30]
[347208032,1735574647249,-3033.39463555,0.00024948,30]
[347208033,1735574647272,-56869.75917894,0.00024948,30]
[347208034,1735574647295,-25352.52805024,0.00024948,30]
[347208036,1735574674218,-9766.95045316,0.00024948,30]
[347208037,1735574674245,-872.47349563,0.00024948,30]
[347208038,1735574674272,-200.93650243,0.00024948,30]
[347208039,1735574674297,-37164.38705413,0.00024948,30]
[347208040,1735574674323,-263.17478233,0.00024948,30]
[347208041,1735574674349,-2653.54720804,0.00024948,30]
[347208042,1735574674374,-63096.02465697,0.00024948,30]
[347208043,1735574674399,-33257.73966217,0.00024948,30]
[347208044,1735574674424,-1743.34327872,0.00024948,30]
[347208045,1735574674449,-2293.12688828,0.00024948,30]
[347208046,1735574674475,-58173.18657127,0.00024948,30]
[347208047,1735574674501,-1443.39034414,0.00024948,30]
[347208048,1735574674525,-1099.55627311,0.00024948,30]
[347208049,1735574674548,-297.29771207,0.00024948,30]
[347208050,1735574674572,-2166.01834293,0.00024948,30]
[347208051,1735574674595,-27074.64640687,0.00024948,30]
[347208052,1735574674619,-275.0,0.00024948,30]
[347208053,1735574674644,-2000.0,0.00024948,30]
[347208054,1735574674668,-56994.62306467,0.00024948,30]
[347208055,1735574674693,-56445.59355982,0.00024948,30]
[347208056,1735574674716,-30445.99657043,0.00024948,30]
[347208057,1735574674740,-2170000.0,0.00024948,30]
[347208058,1735574674767,-110000.0,0.00024948,30]
[347208059,1735574674790,-22945.69617943,0.00024948,30]
[347208060,1735574674817,-8216.58589475,0.00024948,30]
[347208061,1735574674842,-381.51715369,0.00024948,30]
[347208062,1735574674866,-1000.0,0.00024948,30]
[347208063,1735574674890,-1000.0,0.00024948,30]
[347208064,1735574674914,-1000.0,0.00024948,30]
[347208065,1735574674937,-1000.0,0.00024948,30]
[347208066,1735574674961,-1000.0,0.00024948,30]
[347208067,1735574674984,-1000.0,0.00024948,30]
[347208068,1735574675011,-1000.0,0.00024948,30]
[347208069,1735574675035,-1364.64431857,0.00024948,30]
[347208070,1735574675059,-2985.0,0.00024948,30]
[347208071,1735574675083,-202.7,0.00024948,30]
[347208072,1735574675107,-202.7,0.00024948,30]
[347208073,1735574675131,-1000.0,0.00024948,30]
[347208074,1735574675154,-1000.0,0.00024948,30]
[347208075,1735574675177,-1000.0,0.00024948,30]
[347208076,1735574675201,-1000.0,0.00024948,30]
[347208077,1735574675223,-202.7,0.00024948,30]
[347208078,1735574675248,-202.1,0.00024948,30]
[347208079,1735574675273,-1047.99,0.00024948,30]
[347208080,1735574675297,-1000.0,0.00024948,30]
[347208081,1735574675321,-1000.0,0.00024948,30]
[347208082,1735574675345,-2000.0,0.00024948,30]
[347208083,1735574675369,-421.40479243,0.00024948,30]
[347208084,1735574675392,-3709.48144354,0.00024948,30]
[347208085,1735574675415,-501.61052,0.00024948,30]
[347208086,1735574675440,-1000.0,0.00024948,30]
[347208087,1735574675464,-1000.0,0.00024948,30]
[347208088,1735574675488,-1000.0,0.00024948,30]
[347208089,1735574675514,-1000.0,0.00024948,30]
[347208090,1735574675540,-1000.0,0.00024948,30]
[347208091,1735574675564,-1000.0,0.00024948,30]
[347208092,1735574675589,-1000.0,0.00024948,30]
[347208093,1735574675613,-1000.0,0.00024948,30]
[347208094,1735574675637,-1000.0,0.00024948,30]
[347208095,1735574675661,-1000.0,0.00024948,30]
[347208096,1735574675685,-1000.0,0.00024948,30]
[347208097,1735574675708,-1000.0,0.00024948,30]
[347208098,1735574675733,-1000.0,0.00024948,30]
[347208099,1735574675757,-1000.0,0.00024948,30]
[347208100,1735574675781,-1000.0,0.00024948,30]
[347208101,1735574675808,-1000.0,0.00024948,30]
[347208102,1735574675834,-1000.0,0.00024948,30]
[347208103,1735574675860,-1000.0,0.00024948,30]
[347208104,1735574675887,-1000.0,0.00024948,30]
[347208105,1735574675911,-1000.0,0.00024948,30]
[347208106,1735574675935,-1000.0,0.00024948,30]
[347208107,1735574675959,-1000.0,0.00024948,30]
[347208108,1735574675983,-1000.0,0.00024948,30]
[347208109,1735574676008,-1000.0,0.00024948,30]
[347208110,1735574676032,-1000.0,0.00024948,30]
[347208111,1735574676056,-1000.0,0.00024948,30]
[347208112,1735574676080,-1000.0,0.00024948,30]
[347208113,1735574676104,-1000.0,0.00024948,30]
[347208114,1735574676129,-1000.0,0.00024948,30]
[347208115,1735574676153,-1000.0,0.00024948,30]
[347208116,1735574676177,-159.060587,0.00024948,40]
[347208117,1735574676439,-159.060587,0.00024948,40]
[347208118,1735574676463,-250.0,0.00024948,30]
[347208119,1735574676486,-250.0,0.00024948,30]
[347208120,1735574676511,-250.0,0.00024948,30]
[347208121,1735574676534,-250.0,0.00024948,30]
[347208122,1735574676558,-250.0,0.00024948,30]
[347208123,1735574676581,-250.0,0.00024948,30]
[347208124,1735574676605,-250.0,0.00024948,30]
[347208125,1735574676628,-250.0,0.00024948,30]
[347208126,1735574676652,-250.0,0.00024948,30]
[347208127,1735574676676,-250.0,0.00024948,30]
[347208128,1735574676699,-250.0,0.00024948,30]
[347208129,1735574676722,-250.0,0.00024948,30]
[347208130,1735574676745,-242.717175,0.00024948,30]
[347208131,1735574676768,-159.0,0.00024948,30]
[347208132,1735574676792,-1402.38029935,0.00024948,30]
[347208133,1735574796731,4328.92966013,0.00024948,60]
[347208134,1735574815289,-300.0,0.0001124,2]
[347208135,1735574815311,-95.53481986,0.00011241,2]
[347208136,1735574832515,-229.32650466,0.00011141,2]
[347208137,1735574854114,31841.0764864,0.00024948,60]
[347208138,1735574857206,300.0,0.0002,120]
[347208139,1735574892307,223.21,0.00010137,2]
[347208141,1735574946114,-641.19014306,0.00011034,2]
[347208142,1735574946134,-1500.0,0.00011132,2]
[347208143,1735574946154,-1355.84,0.00011134,2]
[347208144,1735574946174,-300.0,0.0001124,2]
[347208145,1735574946195,-7933.4621131,0.00011241,2]
[347208146,1735574950126,300.0,0.0002,120]
[347208147,1735574952107,-3430.0,0.00011241,2]
[347208148,1735574967614,882.32,9.222e-05,2]
[347208393,1735575031902,-437.7779378,0.00011102,2]
[347208394,1735575031913,-562.2220622,0.00011102,2]
[347208395,1735575031927,-250.0,0.00011145,2]
[347208396,1735575031936,-2769.95571046,0.00011241,2]
[347208397,1735575031963,-1204.56856532,0.00011241,2]
[347208398,1735575031974,-604.32310367,0.00011241,2]
[347208399,1735575031986,-692.77500015,0.00011241,2]
[347208400,1735575032007,-1951.1632492,0.00011241,2]
[347208401,1735575032018,-1570.04824726,0.00011241,2]
[347208402,1735575032030,-1292.5814419,0.00011241,2]
[347208403,1735575032052,-959.18225948,0.00011241,2]
[347208404,1735575032064,-450.0,0.00011241,2]
[347208405,1735575032108,-946.4054896,0.00011241,2]
[347208406,1735575032119,-1580.21,0.00011241,2]
[347208407,1735575032129,-150.0,0.00011244,2]
[347208408,1735575032139,-150.0,0.00011244,2]
[347208409,1735575032148,-150.0,0.00011244,2]
[347208410,1735575032158,-500.0,0.0001125,2]
[347208411,1735575032168,-500.0,0.0001125,2]
[347208412,1735575032178,-500.0,0.0001125,2]
[347208413,1735575032188,-250.0,0.00011252,2]
[347208414,1735575032197,-250.0,0.00011252,2]